[Event "44th Chess Olympiad Open 2022"]
[Site "Chennai"]
[Date "2022.08.02"]
[Round "5.30"]
[White "Rakotomaharavo, Dylan"]
[Black "Sukovic Andrej"]
[Result "1/2-1/2"]
[WhiteElo "1948"]
[BlackElo "2294"]
[Annotator "NA RC"]
[PlyCount "95"]
[EventDate "2022.??.??"]
[TimeControl "60"]

1. e4 {[%emt 0:00:11]} c5 {[%emt 0:00:21]} 2. Nf3 {[%emt 0:00:06]} d6 {[%emt 0:
00:00]} 3. d4 {[%emt 0:00:05]} cxd4 {[%emt 0:00:10]} 4. Nxd4 {[%emt 0:00:09]}
Nf6 {[%emt 0:00:08]} 5. f3 {[%emt 0:02:06]} e5 {[%emt 0:08:07]} 6. Nb3 {
[%emt 0:00:00]} d5 {[%emt 0:00:06]} 7. Bg5 {[%emt 0:00:04]} d4 {[%emt 0:00:17]}
8. c3 {[%emt 0:00:09]} Nc6 {[%emt 0:00:05]} 9. Bb5 {[%emt 0:00:06]} Qb6 {
[%emt 0:00:09]} 10. Bxc6+ {[%emt 0:00:53]} bxc6 {[%emt 0:03:06]} 11. cxd4 {
[%emt 0:02:22]} Ba6 {[%emt 0:00:06]} 12. Na3 {[%emt 0:43:59]} Rd8 {[%emt 0:00:
00]} 13. Rc1 {[%emt 0:00:00]} exd4 {[%emt 0:18:54]} 14. Nc4 {[%emt 0:00:00]}
Qb5 {[%emt 0:04:35]} 15. Bd2 {[%emt 0:00:00]} Be7 {[%emt 0:03:15]} 16. Nba5 {
[%emt 0:00:00]} Rc8 {[%emt 0:07:19]} 17. O-O {[%emt 0:00:00]} O-O {[%emt 0:00:
00]} 18. b4 {[%emt 0:00:00]} Nd7 {[%emt 0:00:00]} 19. a3 {[%emt 0:00:00]} Nb6 {
[%emt 0:02:15]} 20. Re1 {[%emt 0:00:00]} c5 {[%emt 0:19:52]} 21. bxc5 {[%emt 0:
00:00]} Nxc4 {[%emt 0:01:00]} 22. Rxc4 {[%emt 0:03:13]} Bxc5 23. Rxc5 {[%emt 0:
00:00]} Rxc5 {[%emt 0:00:00]} 24. Bb4 {[%emt 0:00:00]} d3 {[%emt 0:11:54]} 25.
Kh1 {[%emt 0:01:40]} Rc2 {[%emt 0:00:00]} 26. Nb3 {[%emt 0:00:49]} Rd8 {
[%emt 0:00:00]} 27. Rg1 {[%emt 0:06:42]} Bc8 {[%emt 0:02:40]} 28. Na1 Ra2 {
[%emt 0:01:36]} 29. Nb3 {[%emt 0:02:47]} Rc2 {[%emt 0:00:11]} 30. Na1 {[%emt 0:
00:00]} Ra2 {[%emt 0:00:00]} 31. Nb3 {[%emt 0:00:09]} Qc4 {[%emt 0:00:00]} 32.
Nd2 {[%emt 0:00:43]} Qc7 {[%emt 0:00:00]} 33. Qa4 {[%emt 0:02:35]} Qd7 {
[%emt 0:00:00]} 34. Qa5 {[%emt 0:00:20]} Rc2 {[%emt 0:00:00]} 35. Qg5 {[%emt 0:
00:00]} h6 {[%emt 0:00:00]} 36. Qh5 {[%emt 0:00:54]} Qc6 {[%emt 0:00:00]} 37.
Qa5 {[%emt 0:00:00]} Qb6 {[%emt 0:01:40]} 38. Qxb6 {[%emt 0:00:03]} axb6 {
[%emt 0:00:00]} 39. Rd1 {[%emt 0:00:05]} Be6 {[%emt 0:00:00]} 40. Kg1 {[%emt 0:
00:00]} Rdc8 {[%emt 0:00:00]} 41. Kf2 {[%emt 0:13:32]} Bc4 {[%emt 0:00:00]} 42.
Ke3 {[%emt 0:00:00]} b5 {[%emt 0:00:00]} 43. h4 {[%emt 0:00:00]} f5 {[%emt 0:
00:00]} 44. exf5 {[%emt 0:00:00]} Re8+ {[%emt 0:00:00]} 45. Kd4 {[%emt 0:02:24]
} Rd8+ {[%emt 0:00:09]} 46. Ke3 {[%emt 0:00:00]} Re8+ {[%emt 0:02:08]} 47. Kd4
{[%emt 0:00:00]} Rd8+ {[%emt 0:02:41]} 48. Ke3 {[%emt 0:00:00]} 1/2-1/2

[Event "44th Chess Olympiad Open 2022"]
[Site "Chennai"]
[Date "2022.08.02"]
[Round "5.31"]
[White "Ashiku, Franc"]
[Black "Rahman, Ziaur"]
[Result "0-1"]
[WhiteElo "2422"]
[BlackElo "2424"]
[Annotator "RC"]
[PlyCount "62"]
[EventDate "2022.??.??"]
[TimeControl "60"]

1. d4 {[%emt 0:00:07]} d5 {[%emt 0:01:04]} 2. c4 {[%emt 0:00:31]} e6 {[%emt 0:
00:00]} 3. Nc3 {[%emt 0:00:06]} Nf6 {[%emt 0:00:10]} 4. Nf3 {[%emt 0:00:11]} c6
{[%emt 0:02:16]} 5. Bg5 {[%emt 0:04:33]} h6 {[%emt 0:03:54]} 6. Bh4 {[%emt 0:
00:00]} dxc4 {[%emt 0:00:22]} 7. e4 {[%emt 0:01:50]} g5 {[%emt 0:00:24]} 8. Bg3
{[%emt 0:00:07]} b5 {[%emt 0:00:05]} 9. Be2 {[%emt 0:02:29]} Bb7 {[%emt 0:00:
00]} 10. Qc2 {[%emt 0:03:54]} Nbd7 {[%emt 0:01:37]} 11. O-O {[%emt 0:03:19]}
Nh5 {[%emt 0:04:03]} 12. Rad1 {[%emt 0:07:15]} Nxg3 {[%emt 0:06:55]} 13. hxg3 {
[%emt 0:03:03]} Qb6 {[%emt 0:15:01]} 14. Rfe1 {[%emt 0:10:13]} Bg7 {[%emt 0:00:
00]} 15. e5 {[%emt 0:00:27]} Bf8 {[%emt 0:04:54]} 16. b3 {[%emt 0:06:31]} cxb3
{[%emt 0:00:58]} 17. Qxb3 {[%emt 0:04:10]} Be7 {[%emt 0:00:19]} 18. Nd2 {
[%emt 0:08:01]} O-O {[%emt 0:05:46]} 19. Bg4 {[%emt 0:05:54]} Rad8 {[%emt 0:00:
00]} 20. Nf3 {[%emt 0:04:07]} Kg7 {[%emt 0:08:34]} 21. Qc2 {[%emt 0:10:22]} b4
{[%emt 0:01:34]} 22. Na4 {[%emt 0:00:00]} Qb5 {[%emt 0:08:39]} 23. Rc1 {
[%emt 0:02:23]} c5 {[%emt 0:01:15]} 24. Nxc5 {[%emt 0:02:57]} Nxc5 {[%emt 0:00:
00]} 25. dxc5 {[%emt 0:00:35]} Rc8 {[%emt 0:02:49]} 26. Nd4 {[%emt 0:11:55]}
Qxc5 {[%emt 0:00:06]} 27. Qd3 {[%emt 0:03:46]} Qxc1 {[%emt 0:05:13]} 28. Rxc1 {
[%emt 0:00:00]} Rxc1+ {[%emt 0:00:07]} 29. Kh2 {[%emt 0:01:59]} Bd5 {[%emt 0:
00:00]} 30. Bh5 {[%emt 0:00:00]} Rd8 {[%emt 0:03:41]} 31. Nb5 {[%emt 0:00:00]}
Rh1+ {[%emt 0:00:35]} 0-1

[Event "44th Chess Olympiad Open 2022"]
[Site "Chennai"]
[Date "2022.08.02"]
[Round "5.31"]
[White "Murshed, Niaz"]
[Black "Mehmeti, Dritan"]
[Result "1/2-1/2"]
[WhiteElo "2413"]
[BlackElo "2371"]
[Annotator "RC"]
[PlyCount "62"]
[EventDate "2022.??.??"]
[TimeControl "60"]

1. d4 {[%emt 0:00:08]} Nf6 {[%emt 0:00:15]} 2. c4 {[%emt 0:00:13]} e6 {[%emt 0:
00:00]} 3. Nf3 {[%emt 0:00:27]} d5 {[%emt 0:00:34]} 4. Nc3 {[%emt 0:03:08]} Bb4
{[%emt 0:04:03]} 5. Bg5 {[%emt 0:02:28]} h6 {[%emt 0:00:42]} 6. Bxf6 {[%emt 0:
00:00]} Qxf6 {[%emt 0:04:59]} 7. e3 {[%emt 0:00:04]} Nc6 {[%emt 0:05:14]} 8.
Rc1 {[%emt 0:02:05]} O-O {[%emt 0:01:38]} 9. a3 {[%emt 0:00:56]} Bxc3+ {
[%emt 0:01:10]} 10. Rxc3 {[%emt 0:05:59]} dxc4 {[%emt 0:05:42]} 11. Bxc4 {
[%emt 0:09:50]} e5 {[%emt 0:01:38]} 12. Nxe5 {[%emt 0:04:40]} Nxe5 {[%emt 0:00:
00]} 13. dxe5 {[%emt 0:00:04]} Qxe5 {[%emt 0:00:20]} 14. O-O {[%emt 0:00:08]}
c6 {[%emt 0:05:05]} 15. f4 {[%emt 0:18:56]} Qe7 {[%emt 0:04:03]} 16. f5 {
[%emt 0:03:05]} Qe5 {[%emt 0:19:54]} 17. Qg4 {[%emt 0:08:11]} b5 {[%emt 0:00:
00]} 18. Ba2 {[%emt 0:08:52]} c5 {[%emt 0:02:38]} 19. Qf3 {[%emt 0:07:35]} b4 {
[%emt 0:04:48]} 20. Rc2 {[%emt 0:00:00]} Rb8 {[%emt 0:03:43]} 21. Bd5 {[%emt 0:
00:00]} Ba6 {[%emt 0:06:05]} 22. Rfc1 {[%emt 0:01:15]} bxa3 {[%emt 0:01:30]}
23. bxa3 {[%emt 0:00:09]} Rfc8 {[%emt 0:00:40]} 24. e4 {[%emt 0:01:36]} Bb7 {
[%emt 0:06:59]} 25. Qc3 {[%emt 0:05:02]} Qxc3 {[%emt 0:02:51]} 26. Rxc3 {
[%emt 0:00:04]} Bxd5 {[%emt 0:00:16]} 27. exd5 {[%emt 0:00:08]} Rb5 {[%emt 0:
00:00]} 28. d6 {[%emt 0:03:47]} Kf8 {[%emt 0:00:22]} 29. d7 {[%emt 0:01:55]}
Rd8 {[%emt 0:00:06]} 30. Rxc5 {[%emt 0:00:04]} Rxc5 {[%emt 0:00:06]} 31. Rxc5 {
[%emt 0:00:05]} Rxd7 {[%emt 0:00:03]} 1/2-1/2

[Event "44th Chess Olympiad Open 2022"]
[Site "Chennai"]
[Date "2022.08.02"]
[Round "5.31"]
[White "Hossain, Enamul"]
[Black "Pasko, Llambi"]
[Result "1-0"]
[WhiteElo "2377"]
[BlackElo "2418"]
[Annotator "RC"]
[PlyCount "95"]
[EventDate "2022.??.??"]
[TimeControl "60"]

1. e4 {[%emt 0:00:07]} c6 {[%emt 0:00:08]} 2. d4 {[%emt 0:00:17]} d5 {[%emt 0:
00:00]} 3. e5 {[%emt 0:00:23]} Bf5 {[%emt 0:00:16]} 4. Nd2 {[%emt 0:00:23]} e6
{[%emt 0:01:29]} 5. Nb3 {[%emt 0:00:17]} Nd7 {[%emt 0:01:42]} 6. Nf3 {[%emt 0:
00:00]} h6 {[%emt 0:02:29]} 7. Be2 {[%emt 0:00:29]} Ne7 {[%emt 0:02:03]} 8. O-O
{[%emt 0:00:37]} g5 {[%emt 0:00:14]} 9. a4 {[%emt 0:01:27]} Ng6 {[%emt 0:00:49]
} 10. Ne1 {[%emt 0:02:43]} h5 {[%emt 0:05:25]} 11. Bxh5 {[%emt 0:05:08]} g4 {
[%emt 0:00:55]} 12. Bxg4 {[%emt 0:01:12]} Qh4 {[%emt 0:07:33]} 13. h3 {[%emt 0:
00:00]} Bxg4 {[%emt 0:06:27]} 14. Qxg4 {[%emt 0:00:12]} Qh7 {[%emt 0:00:10]}
15. Nf3 {[%emt 0:21:53]} Ne7 {[%emt 0:02:15]} 16. c3 {[%emt 0:05:08]} Qc2 {
[%emt 0:00:59]} 17. Nbd2 {[%emt 0:01:39]} Bh6 {[%emt 0:00:26]} 18. Ne1 {
[%emt 0:01:32]} Qh7 {[%emt 0:01:08]} 19. Ndf3 {[%emt 0:02:46]} Bxc1 {[%emt 0:
00:00]} 20. Rxc1 O-O-O {[%emt 0:00:11]} 21. Ng5 {[%emt 0:05:26]} Qg6 {[%emt 0:
00:00]} 22. f4 {[%emt 0:04:36]} Nf5 {[%emt 0:00:51]} 23. Rf2 {[%emt 0:01:27]}
c5 {[%emt 0:03:42]} 24. Qf3 {[%emt 0:07:02]} Kb8 {[%emt 0:02:37]} 25. Qd3 {
[%emt 0:01:21]} Qg7 {[%emt 0:01:23]} 26. a5 {[%emt 0:01:10]} Rc8 {[%emt 0:00:
00]} 27. Rfc2 {[%emt 0:05:22]} Nf8 {[%emt 0:05:45]} 28. a6 {[%emt 0:06:50]} c4
{[%emt 0:01:56]} 29. Qf3 {[%emt 0:01:38]} bxa6 {[%emt 0:00:06]} 30. b3 {
[%emt 0:01:59]} cxb3 {[%emt 0:01:43]} 31. Rb1 {[%emt 0:00:44]} Nd7 {[%emt 0:00:
00]} 32. Rxb3+ {[%emt 0:00:13]} Nb6 {[%emt 0:00:04]} 33. Ra2 {[%emt 0:00:48]}
Rc6 {[%emt 0:01:39]} 34. Nd3 {[%emt 0:01:33]} Rhc8 {[%emt 0:07:13]} 35. Nb4 {
[%emt 0:00:29]} Rc4 {[%emt 0:01:52]} 36. Nxa6+ {[%emt 0:00:29]} Ka8 {[%emt 0:
00:00]} 37. Nc5 {[%emt 0:01:40]} Rc6 {[%emt 0:01:12]} 38. Qd1 {[%emt 0:07:08]}
f6 {[%emt 0:03:22]} 39. exf6 {[%emt 0:01:36]} Qxf6 {[%emt 0:00:14]} 40. Qa1 {
[%emt 0:00:29]} Qe7 {[%emt 0:00:32]} 41. Ngxe6 {[%emt 0:31:52]} Kb8 {[%emt 0:
00:00]} 42. Qe1 {[%emt 0:09:07]} R6xc5 {[%emt 0:31:56]} 43. dxc5 {[%emt 0:00:
00]} Re4 {[%emt 0:00:00]} 44. Qf2 {[%emt 0:00:00]} Qxe6 {[%emt 0:01:29]} 45.
cxb6 {[%emt 0:00:00]} a6 {[%emt 0:00:00]} 46. b7 {[%emt 0:00:00]} d4 {[%emt 0:
00:00]} 47. Rb1 {[%emt 0:00:00]} dxc3 {[%emt 0:00:00]} 48. Qa7+ {[%emt 0:00:00]
} 1-0

[Event "44th Chess Olympiad Open 2022"]
[Site "Chennai"]
[Date "2022.08.02"]
[Round "5.31"]
[White "Veleshnja, Zino"]
[Black "Mehdi Hasan Parag"]
[Result "0-1"]
[WhiteElo "2263"]
[BlackElo "2227"]
[Annotator "NA RC"]
[PlyCount "74"]
[EventDate "2022.??.??"]
[TimeControl "60"]

1. d4 {[%emt 0:00:05]} Nf6 {[%emt 0:00:09]} 2. c4 {[%emt 0:00:09]} e6 {[%emt 0:
00:00]} 3. g3 {[%emt 0:00:04]} d5 {[%emt 0:00:11]} 4. Bg2 {[%emt 0:00:04]} Bb4+
{[%emt 0:00:18]} 5. Bd2 {[%emt 0:00:33]} a5 {[%emt 0:00:05]} 6. Nf3 {[%emt 0:
00:00]} O-O {[%emt 0:00:13]} 7. O-O {[%emt 0:00:37]} dxc4 {[%emt 0:00:33]} 8.
Bxb4 {[%emt 0:05:29]} axb4 {[%emt 0:00:30]} 9. Ne5 {[%emt 0:00:41]} Nc6 {
[%emt 0:03:59]} 10. Nxc6 {[%emt 0:08:04]} bxc6 {[%emt 0:00:26]} 11. e3 {
[%emt 0:04:34]} Nd5 {[%emt 0:04:08]} 12. Qc1 {[%emt 0:07:30]} Ba6 {[%emt 0:00:
00]} 13. Rd1 {[%emt 0:04:56]} Bb5 {[%emt 0:03:28]} 14. Bf1 {[%emt 0:04:41]} Nb6
{[%emt 0:05:31]} 15. Nd2 {[%emt 0:00:59]} Qd5 {[%emt 0:01:55]} 16. Bg2 {
[%emt 0:03:14]} Qh5 {[%emt 0:02:03]} 17. Bf1 {[%emt 0:07:02]} c5 {[%emt 0:00:
00]} 18. Bg2 {[%emt 0:10:12]} cxd4 {[%emt 0:04:39]} 19. exd4 {[%emt 0:02:34]}
Rad8 {[%emt 0:01:17]} 20. Ne4 {[%emt 0:04:35]} Nd5 {[%emt 0:07:25]} 21. Qc2 {
[%emt 0:03:03]} Qg6 {[%emt 0:00:43]} 22. Qd2 {[%emt 0:02:12]} h6 {[%emt 0:00:
00]} 23. a4 {[%emt 0:00:33]} Bc6 {[%emt 0:06:03]} 24. Qe2 {[%emt 0:03:46]} Ne7
{[%emt 0:07:41]} 25. Nc5 {[%emt 0:02:59]} Bxg2 {[%emt 0:00:15]} 26. Kxg2 {
[%emt 0:00:09]} c3 {[%emt 0:00:47]} 27. bxc3 {[%emt 0:00:13]} bxc3 {[%emt 0:00:
00]} 28. Qf3 {[%emt 0:05:03]} c2 {[%emt 0:00:52]} 29. Rd3 {[%emt 0:01:17]} Nf5
{[%emt 0:01:17]} 30. Qe4 {[%emt 0:01:04]} Rd5 {[%emt 0:03:25]} 31. Kg1 {
[%emt 0:08:07]} Rfd8 {[%emt 0:00:19]} 32. Nb3 {[%emt 0:02:43]} Nxd4 {[%emt 0:
00:00]} 33. Rxd4 {[%emt 0:05:10]} Rxd4 {[%emt 0:00:26]} 34. Qc6 {[%emt 0:00:55]
} Rd1+ {[%emt 0:00:59]} 35. Kg2 {[%emt 0:00:07]} R8d5 {[%emt 0:01:14]} 36. Qc4
{[%emt 0:01:39]} Rb1 {[%emt 0:01:36]} 37. Ra2 {[%emt 0:00:30]} Rxb3 {[%emt 0:
00:00]} 0-1

[Event "44th Chess Olympiad Open 2022"]
[Site "Chennai"]
[Date "2022.08.02"]
[Round "5.32"]
[White "Thybo, Jesper Sondergaard"]
[Black "Liu, Yeh Yang"]
[Result "1/2-1/2"]
[WhiteElo "2520"]
[BlackElo "1994"]
[Annotator "RC"]
[PlyCount "84"]
[EventDate "2022.??.??"]
[TimeControl "60"]

1. Nf3 {[%emt 0:00:05]} d5 {[%emt 0:00:10]} 2. g3 {[%emt 0:00:39]} Nf6 {
[%emt 0:00:04]} 3. Bg2 {[%emt 0:00:17]} c5 {[%emt 0:00:07]} 4. O-O {[%emt 0:00:
00]} Nc6 {[%emt 0:00:03]} 5. d4 {[%emt 0:00:53]} cxd4 {[%emt 0:00:23]} 6. Nxd4
{[%emt 0:00:39]} e5 {[%emt 0:00:02]} 7. Nxc6 {[%emt 0:00:51]} bxc6 {[%emt 0:00:
00]} 8. c4 {[%emt 0:00:08]} Be6 {[%emt 0:00:17]} 9. Qa4 {[%emt 0:02:15]} Qd7 {
[%emt 0:00:11]} 10. Nc3 {[%emt 0:00:17]} Rb8 {[%emt 0:00:05]} 11. cxd5 {
[%emt 0:03:14]} cxd5 {[%emt 0:00:14]} 12. Qxd7+ {[%emt 0:00:05]} Kxd7 {[%emt 0:
00:00]} 13. Rd1 {[%emt 0:00:39]} Bc5 {[%emt 0:14:14]} 14. Nxd5 {[%emt 0:06:49]}
Nxd5 {[%emt 0:00:04]} 15. Bxd5 {[%emt 0:00:09]} Rhd8 {[%emt 0:00:05]} 16. Bf3+
{[%emt 0:14:21]} Ke7 {[%emt 0:01:30]} 17. e3 {[%emt 0:13:56]} Rxd1+ {[%emt 0:
00:00]} 18. Bxd1 {[%emt 0:00:05]} Rd8 {[%emt 0:00:03]} 19. Be2 {[%emt 0:00:39]}
Bh3 {[%emt 0:04:17]} 20. f3 {[%emt 0:05:23]} f5 {[%emt 0:01:31]} 21. Kf2 {
[%emt 0:04:36]} f4 {[%emt 0:00:16]} 22. b4 {[%emt 0:03:38]} Bb6 {[%emt 0:02:03]
} 23. a4 {[%emt 0:05:00]} a6 {[%emt 0:05:29]} 24. a5 {[%emt 0:07:12]} Ba7 {
[%emt 0:00:01]} 25. gxf4 {[%emt 0:05:40]} exf4 {[%emt 0:00:03]} 26. Bxa6 {
[%emt 0:00:18]} Rd1 {[%emt 0:01:00]} 27. Ke2 {[%emt 0:00:29]} Rh1 {[%emt 0:00:
00]} 28. b5 {[%emt 0:01:14]} Bf1+ {[%emt 0:08:11]} 29. Kf2 {[%emt 0:02:47]} Bc5
{[%emt 0:00:02]} 30. Ba3 {[%emt 0:10:41]} fxe3+ {[%emt 0:03:13]} 31. Kg3 {
[%emt 0:00:01]} Rg1+ {[%emt 0:10:25]} 32. Kh4 {[%emt 0:00:12]} Bxa3 {[%emt 0:
00:00]} 33. Rxa3 {[%emt 0:00:01]} e2 {[%emt 0:00:05]} 34. Re3+ {[%emt 0:00:11]}
Kf6 {[%emt 0:00:02]} 35. b6 {[%emt 0:11:54]} g5+ {[%emt 0:06:30]} 36. Kh5 {
[%emt 0:00:02]} Rg2 {[%emt 0:00:05]} 37. b7 {[%emt 0:10:32]} Rxh2+ {[%emt 0:00:
00]} 38. Kg4 {[%emt 0:00:00]} h5+ {[%emt 0:00:08]} 39. Kg3 {[%emt 0:00:00]}
Rg2+ {[%emt 0:00:02]} 40. Kh3 {[%emt 0:00:00]} Rf2+ {[%emt 0:00:05]} 41. Kg3 {
[%emt 0:21:55]} Rg2+ {[%emt 0:30:38]} 42. Kh3 {[%emt 0:00:00]} Rf2+ {[%emt 0:
00:00]} 1/2-1/2

[Event "44th Chess Olympiad Open 2022"]
[Site "Chennai"]
[Date "2022.08.02"]
[Round "5.32"]
[White "Haubro, Martin"]
[Black "Wu, Bing-Shen"]
[Result "1-0"]
[WhiteElo "2411"]
[BlackElo "1660"]
[Annotator "RC"]
[PlyCount "79"]
[EventDate "2022.??.??"]
[TimeControl "60"]

1. e4 {[%emt 0:00:02]} d6 {[%emt 0:00:14]} 2. d4 {[%emt 0:00:06]} Nf6 {[%emt 0:
00:00]} 3. Nc3 {[%emt 0:00:06]} g6 {[%emt 0:00:07]} 4. Be3 {[%emt 0:00:54]} Bg7
{[%emt 0:00:09]} 5. Qd2 {[%emt 0:00:05]} O-O {[%emt 0:00:24]} 6. f3 {[%emt 0:
00:00]} c6 {[%emt 0:00:42]} 7. O-O-O {[%emt 0:02:23]} b5 {[%emt 0:00:35]} 8. g4
{[%emt 0:04:11]} b4 {[%emt 0:20:30]} 9. Nce2 {[%emt 0:01:46]} Nbd7 {[%emt 0:00:
00]} 10. Qxb4 {[%emt 0:20:37]} Rb8 {[%emt 0:02:04]} 11. Qa3 {[%emt 0:00:18]}
Nb6 {[%emt 0:05:47]} 12. Nc3 {[%emt 0:01:24]} Be6 {[%emt 0:01:19]} 13. b3 {
[%emt 0:04:33]} Qc7 {[%emt 0:13:42]} 14. Ba6 {[%emt 0:01:23]} Bc8 {[%emt 0:00:
00]} 15. Nge2 {[%emt 0:00:55]} Nfd7 {[%emt 0:03:57]} 16. h4 {[%emt 0:03:04]}
Ra8 {[%emt 0:05:57]} 17. h5 {[%emt 0:04:19]} Nb8 {[%emt 0:05:02]} 18. Bd3 {
[%emt 0:02:47]} a5 {[%emt 0:00:28]} 19. Kb1 {[%emt 0:01:12]} a4 {[%emt 0:04:25]
} 20. Qc1 {[%emt 0:03:43]} Rd8 {[%emt 0:07:27]} 21. hxg6 {[%emt 0:00:00]} fxg6
{[%emt 0:00:28]} 22. Rh4 {[%emt 0:01:34]} N8d7 {[%emt 0:05:51]} 23. f4 {
[%emt 0:06:57]} Nf8 {[%emt 0:00:00]} 24. f5 {[%emt 0:00:20]} e6 {[%emt 0:00:00]
} 25. Rf1 {[%emt 0:02:42]} Rd7 {[%emt 0:00:00]} 26. f6 {[%emt 0:00:51]} Bh8 {
[%emt 0:00:00]} 27. Bh6 {[%emt 0:05:01]} axb3 {[%emt 0:00:30]} 28. cxb3 {
[%emt 0:00:05]} Rf7 {[%emt 0:00:33]} 29. Bxf8 {[%emt 0:00:06]} Kxf8 {[%emt 0:
00:00]} 30. g5 {[%emt 0:00:06]} e5 {[%emt 0:00:33]} 31. Qe3 {[%emt 0:01:09]}
Ba6 {[%emt 0:03:33]} 32. Bxa6 {[%emt 0:01:01]} Rxa6 {[%emt 0:00:03]} 33. dxe5 {
[%emt 0:01:02]} dxe5 {[%emt 0:00:04]} 34. Qc5+ {[%emt 0:00:31]} Kg8 {[%emt 0:
00:00]} 35. Rc1 {[%emt 0:02:13]} Nc8 {[%emt 0:01:55]} 36. Nd5 {[%emt 0:02:28]}
Qd8 {[%emt 0:00:19]} 37. Ne3 {[%emt 0:02:02]} Qd3+ {[%emt 0:00:47]} 38. Rc2 {
[%emt 0:00:04]} Rfa7 {[%emt 0:00:30]} 39. Qc4+ {[%emt 0:00:24]} Qxc4 {[%emt 0:
00:00]} 40. Nxc4 {[%emt 0:00:04]} 1-0

[Event "44th Chess Olympiad Open 2022"]
[Site "Chennai"]
[Date "2022.08.02"]
[Round "5.32"]
[White "Hsu, Hsuan-Ming"]
[Black "Rasmussen, Allan Stig"]
[Result "0-1"]
[WhiteElo "1900"]
[BlackElo "2550"]
[Annotator "TA"]
[PlyCount "50"]
[EventDate "2022.??.??"]
[TimeControl "60"]

{[%evp 16,50,-33,-21,-20,-22,-43,-21,-33,-28,56,46,100,0,0,0,0,0,27,22,75,-60,
-67,-64,-61,-61,-44,-38,179,-111,-107,-235,-223,-484,-501,-1728,-1721]} 1. e4 {
[%emt 0:00:04]} c6 {[%emt 0:00:05][%cal Yc7c6,Yc6c5]} 2. d4 {[%emt 0:00:00]} d5
{[%emt 0:00:08]} 3. e5 {[%emt 0:00:24]} Bf5 {[%emt 0:00:13]} 4. Nc3 {[%emt 0:
00:09]} e6 {[%emt 0:02:02]} 5. g4 {[%emt 0:00:44]} Bg6 {[%emt 0:00:25]} 6. Nge2
{[%emt 0:00:16]} c5 {[%emt 0:02:59]} 7. h4 {[%emt 0:00:53]} h5 {[%emt 0:01:59]}
8. Nf4 {[%emt 0:01:58]} Bh7 {[%emt 0:00:19]} 9. Nxh5 {[%emt 0:00:00]} (9. Bb5+
Nc6 $11) 9... Nc6 {[%emt 0:01:39] 9...cxd4 is not played anymore. B12:
Caro-Kann: Advance Variation.} 10. dxc5 {[%emt 0:03:11]} Bxc5 {[%emt 0:01:00]}
11. Bg5 {[%emt 0:02:38] now scores much better than the old 11. Bb5.} Qb6 {
[%emt 0:12:25] Black has compensation. The position is equal.} 12. Qd2 {
[%emt 0:00:25] [#]} Kf8 $146 {[%emt 0:07:55]} (12... Qxb2 $11 13. Rb1 Qxc2 14.
Qxc2 Bxc2) ({Predecessor:} 12... Nd4 13. O-O-O Bxc2 14. Nxg7+ Kf8 15. Nh5 Rc8
16. Rh3 Rxh5 17. gxh5 Ba3 18. bxa3 Rxc3 {0-1 (25) Garrido Outon,A (2436)-Gines
Esteo,P (2455) Gijon 2022}) 13. O-O-O $14 {[%emt 0:30:03][%cal Yh5g7]} Qa5 {
[%emt 0:11:50] [#]} (13... Nb4 $14) 14. Rh3 {[%emt 0:20:06]} (14. Nxg7 $1 $16 {
Threatens to win with Bf6.} Kxg7 15. Bf6+ Nxf6 16. exf6+ Kg8 17. h5 (17. Qh6 $2
Bf8 $19)) 14... d4 $1 $11 {[%emt 0:08:46]} 15. Nxg7 {[%emt 0:24:52]} Kxg7 {
[%emt 0:03:46]} 16. Bf6+ $1 {[%emt 0:00:34]} Nxf6 {[%emt 0:06:11]} (16... Kf8
$5 {[%cal Rd4c3]} 17. Bxh8 dxc3 18. Qxc3 Nb4 $11) 17. exf6+ {[%emt 0:02:05]}
Kf8 {[%emt 0:04:21] [#]} (17... Kg8 $1 $11 18. Qg5+ (18. Qh6 $2 Bf8 $19) 18...
Bg6) 18. Qh6+ {[%emt 0:00:00]} (18. Qg5 $1 $16 Ke8 19. Bb5) 18... Ke8 $15 {
[%emt 0:00:03]} 19. Qg7 {[%emt 0:01:12] [#]} Rf8 {[%emt 0:03:05] ...Bxc2 is
the strong threat.} 20. Qxh7 {[%emt 0:01:28] Black must now prevent Nb5.} dxc3
{[%emt 0:00:26]} 21. Rxc3 {[%emt 0:02:37]} Bb4 $2 {[%emt 0:12:31] [#]} (21...
Rd8 $15 {keeps the upper hand.} 22. Rcd3 (22. Rxd8+ Kxd8 23. Bg2 Kc7 $15) 22...
Bd4) 22. Re3 $2 {[%emt 0:00:12]} ({Wrong is} 22. Qd3 $2 Rd8 23. Qxd8+ Nxd8 $19)
(22. Rxc6 $1 $18 bxc6 23. Qe4) 22... Qxa2 $40 {[%emt 0:02:34][%cal Ra2a1]
Black attacks with force. Really sharp!} 23. c4 {[%emt 0:00:07] [#]} (23. c3
$17 {is the only way for White.} Bc5 24. Red3) 23... Rd8 $1 $19 {[%emt 0:03:13]
} 24. Rxd8+ $2 {[%emt 0:00:00]} (24. Red3 Qxc4+ 25. Kb1 Rxd3 26. Qxd3 Qxd3+ 27.
Bxd3) 24... Kxd8 {[%emt 0:00:01]} 25. h5 {[%emt 0:01:22]} (25. Rd3+ $142 Kc7
26. Bg2) 25... Qa1+ {[%emt 0:00:59] Weighted Error Value: White=1.12/Black=0.44
} 0-1